[Event "Titled Tuesday Blitz June 13 Late 2023"]
[White "Grigoriants, Sergey"]
[Black "Deac, Bogdan-Daniel"]
[WhiteFideId "4130804"]
[BlackFideId "1226380"]
[WhiteElo "2502"]
[BlackElo "2644"]
[Result "0-1"]
[Round "11"]
[TimeControl "180+2"]
[Date "2023.06.13"]
[WhiteClock "0:00:01"]
[BlackClock "0:00:04"]
[Board "5"]

1. d4 {[%clk 0:02:58]}  b5 {[%clk 0:02:58]} 2. e4 {[%clk 0:02:57]}  Bb7 {[%clk 0:02:59]} 3. Bd3 {[%clk 0:02:49]}  a6 {[%clk 0:02:58]} 4. Nf3 {[%clk 0:02:49]}  e6 {[%clk 0:02:55]} 5. O-O {[%clk 0:02:48]}  c5 {[%clk 0:02:55]} 6. c3 {[%clk 0:02:46]}  cxd4 {[%clk 0:02:55]} 7. cxd4 {[%clk 0:02:47]}  Nf6 {[%clk 0:02:56]} 8. Re1 {[%clk 0:02:45]}  Be7 {[%clk 0:02:56]} 9. Nc3 {[%clk 0:02:42]}  d6 {[%clk 0:02:39]} 10. Bf4 {[%clk 0:02:12]}  O-O {[%clk 0:02:29]} 11. Rc1 {[%clk 0:02:10]}  Nbd7 {[%clk 0:02:17]} 12. Bb1 {[%clk 0:02:01]}  b4 {[%clk 0:01:53]} 13. Na4 {[%clk 0:01:59]}  Rc8 {[%clk 0:01:20]} 14. Qd3 {[%clk 0:01:49]}  Rxc1 {[%clk 0:01:07]} 15. Bxc1 {[%clk 0:01:49]}  g6 {[%clk 0:01:08]} 16. Qb3 {[%clk 0:01:30]}  a5 {[%clk 0:00:58]} 17. a3 {[%clk 0:01:20]}  Qa8 {[%clk 0:00:57]} 18. Ng5 {[%clk 0:01:00]}  Rc8 {[%clk 0:00:20]} 19. Nxe6 {[%clk 0:00:46]}  Bxe4 {[%clk 0:00:17]} 20. Ng5 {[%clk 0:00:38]}  Bd5 {[%clk 0:00:16]} 21. Qh3 {[%clk 0:00:38]}  Bf8 {[%clk 0:00:12]} 22. Bd2 {[%clk 0:00:30]}  Qc6 {[%clk 0:00:06]} 23. b3 {[%clk 0:00:17]}  h6 {[%clk 0:00:05]} 24. Nf3 {[%clk 0:00:13]}  bxa3 {[%clk 0:00:06]} 25. Bxh6 {[%clk 0:00:11]}  Bxf3 {[%clk 0:00:06]} 26. gxf3 {[%clk 0:00:09]}  Qd5 {[%clk 0:00:06]} 27. Bxf8 {[%clk 0:00:02]}  Rxf8 {[%clk 0:00:06]} 28. Nc3 {[%clk 0:00:02]}  Qxb3 {[%clk 0:00:06]} 29. Ne4 {[%clk 0:00:02]}  Nxe4 {[%clk 0:00:04]} 30. Bxe4 {[%clk 0:00:03]}  Nf6 {[%clk 0:00:04]} 31. Qh4 {[%clk 0:00:04]}  Nxe4 {[%clk 0:00:04]} 32. fxe4 {[%clk 0:00:05]}  a2 {[%clk 0:00:04]} 33. Qf6 {[%clk 0:00:01]}  Qc3 {[%clk 0:00:04]} 0-1


[Site "https://www.chess.com"]

[Event "Titled Tuesday Blitz June 13 Late 2023"]
[White "Sarana, Alexey"]
[Black "Rodrigue-Lemieux, Shawn"]
[WhiteFideId "24133795"]
[BlackFideId "2620049"]
[WhiteElo "2714"]
[BlackElo "2405"]
[Result "0-1"]
[Round "11"]
[TimeControl "180+2"]
[Date "2023.06.13"]
[WhiteClock "0:00:02"]
[BlackClock "0:00:06"]
[Board "6"]

1. c4 {[%clk 0:03:00]}  c5 {[%clk 0:02:58]} 2. Nf3 {[%clk 0:02:57]}  Nf6 {[%clk 0:02:55]} 3. Nc3 {[%clk 0:02:56]}  Nc6 {[%clk 0:02:55]} 4. g3 {[%clk 0:02:55]}  g6 {[%clk 0:02:50]} 5. d4 {[%clk 0:02:55]}  cxd4 {[%clk 0:02:47]} 6. Nxd4 {[%clk 0:02:56]}  Bg7 {[%clk 0:02:47]} 7. Bg2 {[%clk 0:02:57]}  O-O {[%clk 0:02:46]} 8. O-O {[%clk 0:02:57]}  Ng4 {[%clk 0:02:37]} 9. e3 {[%clk 0:02:56]}  Nge5 {[%clk 0:02:37]} 10. b3 {[%clk 0:02:55]}  d6 {[%clk 0:02:32]} 11. Bb2 {[%clk 0:02:55]}  Bg4 {[%clk 0:02:30]} 12. f3 {[%clk 0:02:55]}  Bd7 {[%clk 0:02:29]} 13. f4 {[%clk 0:02:49]}  Nxd4 {[%clk 0:02:17]} 14. exd4 {[%clk 0:02:39]}  Ng4 {[%clk 0:02:16]} 15. Qd2 {[%clk 0:02:31]}  Rb8 {[%clk 0:02:07]} 16. h3 {[%clk 0:02:25]}  Nf6 {[%clk 0:02:07]} 17. g4 {[%clk 0:02:26]}  a6 {[%clk 0:02:04]} 18. Rad1 {[%clk 0:02:23]}  b5 {[%clk 0:02:03]} 19. c5 {[%clk 0:02:23]}  Qc7 {[%clk 0:02:01]} 20. b4 {[%clk 0:02:22]}  Rfd8 {[%clk 0:01:59]} 21. Qe3 {[%clk 0:02:14]}  dxc5 {[%clk 0:01:55]} 22. dxc5 {[%clk 0:02:12]}  Bc6 {[%clk 0:01:55]} 23. g5 {[%clk 0:02:08]}  Bxg2 {[%clk 0:01:46]} 24. Kxg2 {[%clk 0:02:05]}  Nh5 {[%clk 0:01:42]} 25. Kf3 {[%clk 0:01:23]}  e5 {[%clk 0:01:37]} 26. fxe5 {[%clk 0:01:19]}  Bxe5 {[%clk 0:01:33]} 27. Kg2 {[%clk 0:00:41]}  Bg7 {[%clk 0:01:06]} 28. Ba1 {[%clk 0:00:31]}  Re8 {[%clk 0:00:58]} 29. Qf3 {[%clk 0:00:31]}  Re5 {[%clk 0:00:53]} 30. h4 {[%clk 0:00:17]}  Rf5 {[%clk 0:00:53]} 31. Qe3 {[%clk 0:00:14]}  Re5 {[%clk 0:00:41]} 32. Qf3 {[%clk 0:00:13]}  Rf5 {[%clk 0:00:41]} 33. Qe3 {[%clk 0:00:14]}  Nf4+ {[%clk 0:00:36]} 34. Kh1 {[%clk 0:00:13]}  h6 {[%clk 0:00:34]} 35. Ne4 {[%clk 0:00:12]}  Bxa1 {[%clk 0:00:32]} 36. Rxa1 {[%clk 0:00:12]}  hxg5 {[%clk 0:00:30]} 37. hxg5 {[%clk 0:00:11]}  Nd5 {[%clk 0:00:17]} 38. Qd4 {[%clk 0:00:08]}  Qc6 {[%clk 0:00:10]} 39. Kg1 {[%clk 0:00:05]}  Nf4 {[%clk 0:00:05]} 40. Rae1 {[%clk 0:00:04]}  Re8 {[%clk 0:00:02]} 41. Nf6+ {[%clk 0:00:04]}  Rxf6 {[%clk 0:00:03]} 42. Rxe8+ {[%clk 0:00:04]}  Qxe8 {[%clk 0:00:03]} 43. Qxf6 {[%clk 0:00:02]}  Qe3+ {[%clk 0:00:04]} 44. Rf2 {[%clk 0:00:02]}  Qe1+ {[%clk 0:00:04]} 45. Rf1 {[%clk 0:00:01]}  Qg3+ {[%clk 0:00:05]} 46. Kh1 {[%clk 0:00:02]}  Qg2# {[%clk 0:00:06]} 0-1


[Site "https://www.chess.com"]

[Event "Titled Tuesday Blitz June 13 Late 2023"]
[White "Vazquez, Guillermo"]
[Black "Chigaev, Maksim"]
[WhiteFideId "3702308"]
[BlackFideId "4108116"]
[WhiteElo "2543"]
[BlackElo "2561"]
[Result "1/2-1/2"]
[Round "11"]
[TimeControl "180+2"]
[Date "2023.06.13"]
[WhiteClock "0:00:11"]
[BlackClock "0:00:03"]
[Board "9"]

1. b3 {[%clk 0:03:00]}  d5 {[%clk 0:02:55]} 2. Bb2 {[%clk 0:03:01]}  Nf6 {[%clk 0:02:56]} 3. Nf3 {[%clk 0:03:00]}  c5 {[%clk 0:02:53]} 4. e3 {[%clk 0:03:00]}  g6 {[%clk 0:02:48]} 5. Bb5+ {[%clk 0:02:59]}  Bd7 {[%clk 0:02:45]} 6. Bxf6 {[%clk 0:02:58]}  exf6 {[%clk 0:02:46]} 7. Bxd7+ {[%clk 0:02:58]}  Qxd7 {[%clk 0:02:44]} 8. d4 {[%clk 0:02:59]}  Nc6 {[%clk 0:02:45]} 9. O-O {[%clk 0:02:55]}  f5 {[%clk 0:02:44]} 10. Nc3 {[%clk 0:02:53]}  cxd4 {[%clk 0:02:32]} 11. Nxd4 {[%clk 0:02:45]}  Bg7 {[%clk 0:02:32]} 12. Nce2 {[%clk 0:02:45]}  O-O {[%clk 0:02:30]} 13. Qd2 {[%clk 0:02:44]}  Rfd8 {[%clk 0:02:28]} 14. Rfd1 {[%clk 0:02:43]}  Rac8 {[%clk 0:02:29]} 15. c3 {[%clk 0:02:42]}  h5 {[%clk 0:02:29]} 16. h3 {[%clk 0:02:41]}  Ne5 {[%clk 0:02:27]} 17. Rac1 {[%clk 0:02:36]}  h4 {[%clk 0:02:27]} 18. Nf4 {[%clk 0:02:36]}  a5 {[%clk 0:02:05]} 19. Nde2 {[%clk 0:02:13]}  Rc5 {[%clk 0:02:03]} 20. Nd3 {[%clk 0:02:09]}  Nxd3 {[%clk 0:02:00]} 21. Qxd3 {[%clk 0:02:10]}  Be5 {[%clk 0:01:53]} 22. Rc2 {[%clk 0:02:07]}  Qe7 {[%clk 0:01:41]} 23. c4 {[%clk 0:01:37]}  Bc7 {[%clk 0:01:27]} 24. cxd5 {[%clk 0:01:28]}  Rdxd5 {[%clk 0:01:20]} 25. Qxd5 {[%clk 0:01:28]}  Rxc2 {[%clk 0:01:20]} 26. Rd2 {[%clk 0:01:22]}  Rxd2 {[%clk 0:01:02]} 27. Qxd2 {[%clk 0:01:23]}  Qe5 {[%clk 0:01:02]} 28. f4 {[%clk 0:01:11]}  Qe6 {[%clk 0:00:47]} 29. Nd4 {[%clk 0:01:08]}  Qe4 {[%clk 0:00:47]} 30. Kf2 {[%clk 0:01:00]}  Bb6 {[%clk 0:00:47]} 31. Ne2 {[%clk 0:00:56]}  Bc5 {[%clk 0:00:34]} 32. Qd8+ {[%clk 0:00:43]}  Kg7 {[%clk 0:00:31]} 33. Nd4 {[%clk 0:00:43]}  b6 {[%clk 0:00:25]} 34. a4 {[%clk 0:00:39]}  Qb1 {[%clk 0:00:03]} 35. Qd7 {[%clk 0:00:30]}  Qa2+ {[%clk 0:00:02]} 36. Kf3 {[%clk 0:00:29]}  Bxd4 {[%clk 0:00:02]} 37. Qxd4+ {[%clk 0:00:29]}  Kh7 {[%clk 0:00:02]} 38. Qc4 {[%clk 0:00:26]}  Kg7 {[%clk 0:00:01]} 39. Qc3+ {[%clk 0:00:26]}  Kh7 {[%clk 0:00:02]} 40. Qc4 {[%clk 0:00:23]}  Kg7 {[%clk 0:00:02]} 41. Qd4+ {[%clk 0:00:24]}  Kh7 {[%clk 0:00:02]} 42. Qxb6 {[%clk 0:00:24]}  Qb1 {[%clk 0:00:01]} 43. Qb5 {[%clk 0:00:20]}  Qd1+ {[%clk 0:00:01]} 44. Kf2 {[%clk 0:00:18]}  Qd2+ {[%clk 0:00:01]} 45. Qe2 {[%clk 0:00:19]}  Qc3 {[%clk 0:00:02]} 46. Qc4 {[%clk 0:00:17]}  Qd2+ {[%clk 0:00:02]} 47. Qe2 {[%clk 0:00:10]}  Qc3 {[%clk 0:00:02]} 48. Qd1 {[%clk 0:00:10]}  Kg8 {[%clk 0:00:02]} 49. Qd8+ {[%clk 0:00:09]}  Kh7 {[%clk 0:00:02]} 50. Qxh4+ {[%clk 0:00:10]}  Kg7 {[%clk 0:00:03]} 51. Qd8 {[%clk 0:00:08]}  Qb2+ {[%clk 0:00:03]} 52. Kf3 {[%clk 0:00:08]}  Qxb3 {[%clk 0:00:03]} 53. Qd4+ {[%clk 0:00:08]}  Kg8 {[%clk 0:00:02]} 54. g4 {[%clk 0:00:08]}  fxg4+ {[%clk 0:00:02]} 55. hxg4 {[%clk 0:00:09]}  Qc2 {[%clk 0:00:01]} 56. g5 {[%clk 0:00:09]}  Qc1 {[%clk 0:00:01]} 57. Ke2 {[%clk 0:00:09]}  Qc2+ {[%clk 0:00:01]} 58. Ke1 {[%clk 0:00:09]}  Qc1+ {[%clk 0:00:01]} 59. Ke2 {[%clk 0:00:10]}  Qc2+ {[%clk 0:00:02]} 60. Kf3 {[%clk 0:00:10]}  Qc1 {[%clk 0:00:02]} 61. Qd8+ {[%clk 0:00:11]}  Kg7 {[%clk 0:00:02]} 62. Qf6+ {[%clk 0:00:10]}  Kg8 {[%clk 0:00:02]} 63. Qd4 {[%clk 0:00:10]}  Qc6+ {[%clk 0:00:02]} 64. e4 {[%clk 0:00:10]}  Qc8 {[%clk 0:00:02]} 65. Kf2 {[%clk 0:00:08]}  Qc2+ {[%clk 0:00:02]} 66. Kf3 {[%clk 0:00:07]}  Qb3+ {[%clk 0:00:02]} 67. Kg4 {[%clk 0:00:07]}  Kh7 {[%clk 0:00:03]} 68. f5 {[%clk 0:00:07]}  Qc2 {[%clk 0:00:02]} 69. Kf4 {[%clk 0:00:07]}  Qc1+ {[%clk 0:00:02]} 70. Kg4 {[%clk 0:00:07]}  Qc8 {[%clk 0:00:01]} 71. Qf6 {[%clk 0:00:06]}  Qc4 {[%clk 0:00:01]} 72. Kf4 {[%clk 0:00:06]}  Qc1+ {[%clk 0:00:01]} 73. Kg4 {[%clk 0:00:06]}  Qg1+ {[%clk 0:00:01]} 74. Kf3 {[%clk 0:00:07]}  Qf1+ {[%clk 0:00:01]} 75. Ke3 {[%clk 0:00:08]}  Qe1+ {[%clk 0:00:02]} 76. Kd3 {[%clk 0:00:08]}  Qd1+ {[%clk 0:00:02]} 77. Kc4 {[%clk 0:00:08]}  Qxa4+ {[%clk 0:00:02]} 78. Kd3 {[%clk 0:00:07]}  Qb3+ {[%clk 0:00:02]} 79. Ke2 {[%clk 0:00:07]}  Qc4+ {[%clk 0:00:02]} 80. Ke3 {[%clk 0:00:08]}  Qc1+ {[%clk 0:00:02]} 81. Kf3 {[%clk 0:00:08]}  Qf1+ {[%clk 0:00:03]} 82. Kg3 {[%clk 0:00:09]}  Qg1+ {[%clk 0:00:03]} 83. Kf3 {[%clk 0:00:09]}  Qf1+ {[%clk 0:00:03]} 84. Kg3 {[%clk 0:00:10]}  Qe1+ {[%clk 0:00:04]} 85. Kf3 {[%clk 0:00:11]}  Qf1+ {[%clk 0:00:03]} 1/2-1/2


[Site "https://www.chess.com"]

[Event "Titled Tuesday Blitz June 13 Late 2023"]
[White "Tanenbaum, Zachary"]
[Black "Kovalev, Vladislav"]
[WhiteFideId "2060850"]
[BlackFideId "13504398"]
[WhiteElo "2207"]
[BlackElo "2555"]
[Result "1/2-1/2"]
[Round "11"]
[TimeControl "180+2"]
[Date "2023.06.13"]
[WhiteClock "0:00:04"]
[BlackClock "0:00:05"]
[Board "10"]

1. e4 {[%clk 0:03:00]}  e5 {[%clk 0:03:00]} 2. Nf3 {[%clk 0:03:01]}  Nc6 {[%clk 0:03:00]} 3. Bc4 {[%clk 0:03:01]}  Nf6 {[%clk 0:03:00]} 4. d3 {[%clk 0:03:01]}  Be7 {[%clk 0:03:00]} 5. O-O {[%clk 0:03:01]}  d6 {[%clk 0:03:00]} 6. a4 {[%clk 0:03:00]}  O-O {[%clk 0:03:00]} 7. Nc3 {[%clk 0:02:57]}  Kh8 {[%clk 0:03:01]} 8. h3 {[%clk 0:02:56]}  Ng8 {[%clk 0:03:00]} 9. Nd5 {[%clk 0:02:53]}  f5 {[%clk 0:03:00]} 10. c3 {[%clk 0:02:52]}  Nf6 {[%clk 0:02:41]} 11. Re1 {[%clk 0:02:43]}  Nxd5 {[%clk 0:02:37]} 12. Bxd5 {[%clk 0:02:43]}  Bf6 {[%clk 0:02:27]} 13. b4 {[%clk 0:02:23]}  Ne7 {[%clk 0:02:24]} 14. Bb3 {[%clk 0:02:21]}  Qe8 {[%clk 0:02:24]} 15. d4 {[%clk 0:02:00]}  f4 {[%clk 0:01:56]} 16. dxe5 {[%clk 0:01:52]}  dxe5 {[%clk 0:01:56]} 17. b5 {[%clk 0:01:46]}  g5 {[%clk 0:01:54]} 18. Nh2 {[%clk 0:01:29]}  h5 {[%clk 0:01:53]} 19. Ba3 {[%clk 0:01:20]}  Qg6 {[%clk 0:01:53]} 20. Nf3 {[%clk 0:01:04]}  Qg7 {[%clk 0:01:48]} 21. Nxe5 {[%clk 0:00:54]}  Bxe5 {[%clk 0:01:46]} 22. Qxh5+ {[%clk 0:00:55]}  Qh7 {[%clk 0:01:41]} 23. Qxh7+ {[%clk 0:00:55]}  Kxh7 {[%clk 0:01:42]} 24. Bxe7 {[%clk 0:00:54]}  Re8 {[%clk 0:01:31]} 25. Bxg5 {[%clk 0:00:55]}  Kg6 {[%clk 0:01:31]} 26. h4 {[%clk 0:00:53]}  Bxc3 {[%clk 0:01:16]} 27. Bxf4 {[%clk 0:00:53]}  Bxa1 {[%clk 0:01:16]} 28. Rxa1 {[%clk 0:00:53]}  Be6 {[%clk 0:01:15]} 29. Bxe6 {[%clk 0:00:47]}  Rxe6 {[%clk 0:01:16]} 30. f3 {[%clk 0:00:46]}  c6 {[%clk 0:01:13]} 31. Kf2 {[%clk 0:00:41]}  cxb5 {[%clk 0:01:06]} 32. axb5 {[%clk 0:00:42]}  a5 {[%clk 0:01:07]} 33. g4 {[%clk 0:00:37]}  a4 {[%clk 0:01:07]} 34. h5+ {[%clk 0:00:37]}  Kg7 {[%clk 0:01:06]} 35. Ra3 {[%clk 0:00:28]}  Rb6 {[%clk 0:01:03]} 36. Be5+ {[%clk 0:00:26]}  Kh6 {[%clk 0:01:01]} 37. Rd3 {[%clk 0:00:22]}  Rxb5 {[%clk 0:00:51]} 38. Rd6+ {[%clk 0:00:21]}  Kh7 {[%clk 0:00:50]} 39. Rd7+ {[%clk 0:00:21]}  Kg8 {[%clk 0:00:50]} 40. Bf6 {[%clk 0:00:20]}  Ra6 {[%clk 0:00:46]} 41. g5 {[%clk 0:00:18]}  Rxf6 {[%clk 0:00:17]} 42. gxf6 {[%clk 0:00:19]}  Rxh5 {[%clk 0:00:17]} 43. f4 {[%clk 0:00:20]}  Rb5 {[%clk 0:00:13]} 44. e5 {[%clk 0:00:19]}  Rb6 {[%clk 0:00:13]} 45. f5 {[%clk 0:00:19]}  Rb5 {[%clk 0:00:14]} 46. Re7 {[%clk 0:00:12]}  a3 {[%clk 0:00:14]} 47. Re8+ {[%clk 0:00:11]}  Kf7 {[%clk 0:00:14]} 48. Re7+ {[%clk 0:00:10]}  Kf8 {[%clk 0:00:15]} 49. Rh7 {[%clk 0:00:07]}  a2 {[%clk 0:00:12]} 50. Rh8+ {[%clk 0:00:07]}  Kf7 {[%clk 0:00:12]} 51. Ra8 {[%clk 0:00:06]}  Rxe5 {[%clk 0:00:11]} 52. Rxa2 {[%clk 0:00:07]}  Rxf5+ {[%clk 0:00:11]} 53. Ke3 {[%clk 0:00:07]}  Re5+ {[%clk 0:00:09]} 54. Kd4 {[%clk 0:00:07]}  Rb5 {[%clk 0:00:05]} 55. Rf2 {[%clk 0:00:06]}  Rb1 {[%clk 0:00:06]} 56. Kc5 {[%clk 0:00:06]}  b5 {[%clk 0:00:04]} 57. Rf4 {[%clk 0:00:05]}  b4 {[%clk 0:00:03]} 58. Rxb4 {[%clk 0:00:05]}  Rc1+ {[%clk 0:00:04]} 59. Rc4 {[%clk 0:00:04]}  Rxc4+ {[%clk 0:00:04]} 60. Kxc4 {[%clk 0:00:04]}  Kxf6 {[%clk 0:00:05]} 1/2-1/2


[Site "https://www.chess.com"]

[Event "Titled Tuesday Blitz June 13 Late 2023"]
[White "Xiong, Jeffery"]
[Black "Djordjevic, Vuk"]
[WhiteFideId "2047640"]
[BlackFideId "902098"]
[WhiteElo "2726"]
[BlackElo "2463"]
[Result "1-0"]
[Round "11"]
[TimeControl "180+2"]
[Date "2023.06.13"]
[WhiteClock "0:01:54"]
[BlackClock "0:00:02"]
[Board "12"]

1. e4 {[%clk 0:03:00]}  e6 {[%clk 0:02:59]} 2. d4 {[%clk 0:03:01]}  d5 {[%clk 0:02:59]} 3. e5 {[%clk 0:03:01]}  c5 {[%clk 0:02:59]} 4. c3 {[%clk 0:03:02]}  Nc6 {[%clk 0:02:59]} 5. Nf3 {[%clk 0:03:02]}  Qb6 {[%clk 0:02:59]} 6. Be2 {[%clk 0:03:02]}  cxd4 {[%clk 0:02:52]} 7. cxd4 {[%clk 0:03:03]}  Bb4+ {[%clk 0:02:52]} 8. Kf1 {[%clk 0:02:54]}  Bd7 {[%clk 0:02:48]} 9. a3 {[%clk 0:02:54]}  Be7 {[%clk 0:02:47]} 10. Nc3 {[%clk 0:02:54]}  Na5 {[%clk 0:02:37]} 11. b4 {[%clk 0:02:51]}  Nc4 {[%clk 0:02:33]} 12. h4 {[%clk 0:02:46]}  Rc8 {[%clk 0:01:11]} 13. Rh3 {[%clk 0:02:46]}  a5 {[%clk 0:01:02]} 14. b5 {[%clk 0:02:45]}  Nh6 {[%clk 0:00:42]} 15. a4 {[%clk 0:02:35]}  Bb4 {[%clk 0:00:31]} 16. Na2 {[%clk 0:02:35]}  Be7 {[%clk 0:00:19]} 17. Bf4 {[%clk 0:02:24]}  f6 {[%clk 0:00:12]} 18. Rc1 {[%clk 0:02:21]}  Nf7 {[%clk 0:00:11]} 19. Rg3 {[%clk 0:02:20]}  O-O {[%clk 0:00:10]} 20. Bxc4 {[%clk 0:02:16]}  Rxc4 {[%clk 0:00:07]} 21. Rxc4 {[%clk 0:02:16]}  dxc4 {[%clk 0:00:08]} 22. Nc3 {[%clk 0:02:17]}  Rd8 {[%clk 0:00:04]} 23. exf6 {[%clk 0:02:12]}  Bxf6 {[%clk 0:00:04]} 24. Ne4 {[%clk 0:02:13]}  Kf8 {[%clk 0:00:04]} 25. Qd2 {[%clk 0:02:03]}  Rc8 {[%clk 0:00:03]} 26. Ne5 {[%clk 0:01:59]}  Bxe5 {[%clk 0:00:03]} 27. Bxe5 {[%clk 0:02:00]}  Nxe5 {[%clk 0:00:03]} 28. dxe5 {[%clk 0:02:01]}  Rc7 {[%clk 0:00:02]} 29. Qf4+ {[%clk 0:02:00]}  Kg8 {[%clk 0:00:01]} 30. Nf6+ {[%clk 0:01:54]}  Kh8 {[%clk 0:00:01]} 31. Nxd7 {[%clk 0:01:54]}  Rxd7 {[%clk 0:00:02]} 32. Qf8# {[%clk 0:01:54]} 1-0


[Site "https://www.chess.com"]

[Event "Titled Tuesday Blitz June 13 Late 2023"]
[White "Nazari, Arad"]
[Black "Aravindh, Chithambaram VR."]
[WhiteFideId "12577324"]
[BlackFideId "5072786"]
[WhiteElo "2175"]
[BlackElo "2596"]
[Result "0-1"]
[Round "11"]
[TimeControl "180+2"]
[Date "2023.06.13"]
[WhiteClock "0:00:00"]
[BlackClock "0:00:10"]
[Board "13"]

1. e4 {[%clk 0:03:00]}  c6 {[%clk 0:02:59]} 2. Nf3 {[%clk 0:03:01]}  d5 {[%clk 0:03:00]} 3. Nc3 {[%clk 0:03:02]}  dxe4 {[%clk 0:02:59]} 4. Nxe4 {[%clk 0:03:02]}  Nf6 {[%clk 0:02:59]} 5. Qe2 {[%clk 0:03:03]}  Nxe4 {[%clk 0:02:58]} 6. Qxe4 {[%clk 0:03:04]}  Nd7 {[%clk 0:02:56]} 7. Bc4 {[%clk 0:03:04]}  Nf6 {[%clk 0:02:55]} 8. Ne5 {[%clk 0:03:05]}  e6 {[%clk 0:02:56]} 9. Qe2 {[%clk 0:03:05]}  Be7 {[%clk 0:02:53]} 10. O-O {[%clk 0:03:03]}  O-O {[%clk 0:02:53]} 11. c3 {[%clk 0:03:04]}  a5 {[%clk 0:02:46]} 12. d4 {[%clk 0:03:03]}  a4 {[%clk 0:02:46]} 13. a3 {[%clk 0:03:01]}  c5 {[%clk 0:02:38]} 14. Be3 {[%clk 0:02:59]}  Qc7 {[%clk 0:02:37]} 15. Rad1 {[%clk 0:02:46]}  cxd4 {[%clk 0:02:34]} 16. Bxd4 {[%clk 0:02:45]}  Ra5 {[%clk 0:02:33]} 17. Bd3 {[%clk 0:02:38]}  Rd5 {[%clk 0:02:27]} 18. Nf3 {[%clk 0:02:28]}  Rfd8 {[%clk 0:02:17]} 19. Qc2 {[%clk 0:02:13]}  h6 {[%clk 0:02:12]} 20. Rfe1 {[%clk 0:01:52]}  Bd7 {[%clk 0:02:03]} 21. Ne5 {[%clk 0:01:37]}  Be8 {[%clk 0:02:00]} 22. Nc4 {[%clk 0:01:28]}  Ng4 {[%clk 0:01:51]} 23. g3 {[%clk 0:01:20]}  Rh5 {[%clk 0:01:30]} 24. Bb6 {[%clk 0:01:11]}  Qb8 {[%clk 0:01:17]} 25. Bxd8 {[%clk 0:01:09]}  Bxd8 {[%clk 0:01:18]} 26. Be2 {[%clk 0:01:05]}  Rg5 {[%clk 0:01:10]} 27. Bxg4 {[%clk 0:00:52]}  Rxg4 {[%clk 0:01:09]} 28. Ne5 {[%clk 0:00:51]}  Rg5 {[%clk 0:01:05]} 29. Nf3 {[%clk 0:00:50]}  Rc5 {[%clk 0:01:00]} 30. Qd2 {[%clk 0:00:42]}  Bf6 {[%clk 0:00:59]} 31. Nd4 {[%clk 0:00:39]}  Rd5 {[%clk 0:00:51]} 32. Qe2 {[%clk 0:00:34]}  Qc8 {[%clk 0:00:48]} 33. Nc2 {[%clk 0:00:22]}  Rc5 {[%clk 0:00:35]} 34. Nb4 {[%clk 0:00:18]}  Bb5 {[%clk 0:00:33]} 35. Qe3 {[%clk 0:00:17]}  Bc4 {[%clk 0:00:31]} 36. Rd2 {[%clk 0:00:16]}  Re5 {[%clk 0:00:30]} 37. Qxe5 {[%clk 0:00:11]}  Bxe5 {[%clk 0:00:31]} 38. Rxe5 {[%clk 0:00:12]}  b5 {[%clk 0:00:29]} 39. f4 {[%clk 0:00:08]}  Qc7 {[%clk 0:00:28]} 40. Re3 {[%clk 0:00:07]}  Qc5 {[%clk 0:00:26]} 41. Nc2 {[%clk 0:00:07]}  g5 {[%clk 0:00:22]} 42. fxg5 {[%clk 0:00:06]}  hxg5 {[%clk 0:00:22]} 43. Nd4 {[%clk 0:00:06]}  e5 {[%clk 0:00:21]} 44. Nc2 {[%clk 0:00:03]}  Bb3 {[%clk 0:00:19]} 45. Kf2 {[%clk 0:00:03]}  f5 {[%clk 0:00:19]} 46. Ke2 {[%clk 0:00:02]}  f4 {[%clk 0:00:17]} 47. gxf4 {[%clk 0:00:03]}  gxf4 {[%clk 0:00:18]} 48. Rh3 {[%clk 0:00:03]}  e4 {[%clk 0:00:14]} 49. Nd4 {[%clk 0:00:03]}  Bc4+ {[%clk 0:00:12]} 50. Ke1 {[%clk 0:00:03]}  Qg5 {[%clk 0:00:10]} 51. Rf2 {[%clk 0:00:00]}  Qg1+ {[%clk 0:00:10]} 0-1


[Site "https://www.chess.com"]

[Event "Titled Tuesday Blitz June 13 Late 2023"]
[White "Gomez Ledo, Roberto Carlos"]
[Black "Kosakowski, Jakub"]
[WhiteFideId "3507076"]
[BlackFideId "1185080"]
[WhiteElo "2378"]
[BlackElo "2488"]
[Result "1-0"]
[Round "11"]
[TimeControl "180+2"]
[Date "2023.06.13"]
[WhiteClock "0:00:11"]
[BlackClock "0:00:05"]
[Board "15"]

1. d4 {[%clk 0:03:00]}  Nf6 {[%clk 0:02:59]} 2. Bf4 {[%clk 0:03:00]}  e6 {[%clk 0:02:57]} 3. e3 {[%clk 0:02:59]}  c5 {[%clk 0:02:57]} 4. c3 {[%clk 0:02:59]}  Nc6 {[%clk 0:02:57]} 5. Nd2 {[%clk 0:02:58]}  h6 {[%clk 0:02:55]} 6. Bd3 {[%clk 0:02:56]}  Be7 {[%clk 0:02:54]} 7. h3 {[%clk 0:02:56]}  O-O {[%clk 0:02:53]} 8. Ngf3 {[%clk 0:02:55]}  b6 {[%clk 0:02:52]} 9. O-O {[%clk 0:02:55]}  Bb7 {[%clk 0:02:53]} 10. Qe2 {[%clk 0:02:54]}  d6 {[%clk 0:02:52]} 11. Bh2 {[%clk 0:02:54]}  Re8 {[%clk 0:02:51]} 12. Rfd1 {[%clk 0:02:52]}  Bf8 {[%clk 0:02:51]} 13. Rac1 {[%clk 0:02:45]}  cxd4 {[%clk 0:02:46]} 14. cxd4 {[%clk 0:02:44]}  Rc8 {[%clk 0:02:40]} 15. Bb5 {[%clk 0:02:28]}  Re7 {[%clk 0:02:29]} 16. Ba6 {[%clk 0:01:59]}  Bxa6 {[%clk 0:02:25]} 17. Qxa6 {[%clk 0:02:00]}  Rec7 {[%clk 0:02:25]} 18. Nb3 {[%clk 0:01:48]}  Nb4 {[%clk 0:02:02]} 19. Qa4 {[%clk 0:01:40]}  Rxc1 {[%clk 0:01:58]} 20. Rxc1 {[%clk 0:01:37]}  Nd3 {[%clk 0:01:57]} 21. Rxc8 {[%clk 0:01:33]}  Qxc8 {[%clk 0:01:58]} 22. Qxa7 {[%clk 0:01:29]}  Qc2 {[%clk 0:01:58]} 23. Bg3 {[%clk 0:01:24]}  Ne4 {[%clk 0:01:54]} 24. Qxb6 {[%clk 0:01:04]}  Ndxf2 {[%clk 0:01:53]} 25. Bxf2 {[%clk 0:01:01]}  Qxf2+ {[%clk 0:01:52]} 26. Kh2 {[%clk 0:00:59]}  Qxe3 {[%clk 0:01:42]} 27. a4 {[%clk 0:00:52]}  d5 {[%clk 0:01:39]} 28. Qb8 {[%clk 0:00:46]}  g5 {[%clk 0:01:22]} 29. a5 {[%clk 0:00:44]}  Kg7 {[%clk 0:01:14]} 30. Qe5+ {[%clk 0:00:33]}  f6 {[%clk 0:01:11]} 31. Qxe6 {[%clk 0:00:24]}  Bd6+ {[%clk 0:00:47]} 32. Ne5 {[%clk 0:00:24]}  Qf4+ {[%clk 0:00:44]} 33. Kg1 {[%clk 0:00:22]}  fxe5 {[%clk 0:00:43]} 34. Qd7+ {[%clk 0:00:19]}  Qf7 {[%clk 0:00:20]} 35. Qxf7+ {[%clk 0:00:14]}  Kxf7 {[%clk 0:00:21]} 36. a6 {[%clk 0:00:14]}  Bb8 {[%clk 0:00:22]} 37. Na5 {[%clk 0:00:13]}  Ba7 {[%clk 0:00:06]} 38. Nc6 {[%clk 0:00:13]}  exd4 {[%clk 0:00:04]} 39. Nxa7 {[%clk 0:00:11]}  Nc5 {[%clk 0:00:05]} 40. Nc6 {[%clk 0:00:09]}  Nxa6 {[%clk 0:00:05]} 41. Nxd4 {[%clk 0:00:10]}  Kf6 {[%clk 0:00:06]} 42. Kf2 {[%clk 0:00:10]}  Nc5 {[%clk 0:00:06]} 43. Ke3 {[%clk 0:00:10]}  Ke5 {[%clk 0:00:06]} 44. b4 {[%clk 0:00:09]}  Ne4 {[%clk 0:00:06]} 45. b5 {[%clk 0:00:09]}  Nd6 {[%clk 0:00:06]} 46. Kd3 {[%clk 0:00:08]}  Kf4 {[%clk 0:00:05]} 47. g4 {[%clk 0:00:07]}  Kg3 {[%clk 0:00:05]} 48. b6 {[%clk 0:00:07]}  Kxh3 {[%clk 0:00:05]} 49. Nf5 {[%clk 0:00:08]}  Nb7 {[%clk 0:00:05]} 50. Nxh6 {[%clk 0:00:08]}  Kg3 {[%clk 0:00:03]} 51. Kd4 {[%clk 0:00:09]}  Kf4 {[%clk 0:00:04]} 52. Kxd5 {[%clk 0:00:09]}  Na5 {[%clk 0:00:04]} 53. Kc5 {[%clk 0:00:09]}  Ke5 {[%clk 0:00:04]} 54. Kb5 {[%clk 0:00:09]}  Nb7 {[%clk 0:00:05]} 55. Kc6 {[%clk 0:00:10]}  Na5+ {[%clk 0:00:05]} 56. Kc7 {[%clk 0:00:10]}  Kf6 {[%clk 0:00:05]} 57. b7 {[%clk 0:00:10]}  Nxb7 {[%clk 0:00:05]} 58. Kxb7 {[%clk 0:00:11]}  Kg6 {[%clk 0:00:06]} 59. Nf5 {[%clk 0:00:11]}  Kf6 {[%clk 0:00:07]} 60. Kc6 {[%clk 0:00:11]}  Ke5 {[%clk 0:00:05]} 61. Nh6 {[%clk 0:00:11]} 1-0


[Site "https://www.chess.com"]